bitfinex/quotes_BTCUSD_20260125
["timestamp","ask_amount","ask_price","bid_price","bid_amount"]
[1769377220253,0.00037174,86489.0,86483.0,0.29134062]
[1769377220953,4.647e-05,86489.0,86483.0,0.29134062]
[1769377221796,4.647e-05,86489.0,86482.0,0.00014162]
[1769377223667,4.647e-05,86489.0,86475.0,0.01156403]
[1769377223668,0.00117919,86478.0,86473.0,0.1776]
[1769377223888,0.00014159,86478.0,86473.0,0.1776]
[1769377224019,0.06937156,86491.0,86473.0,0.1776]
[1769377224020,1.11900598,86483.0,86473.0,0.1776]
[1769377224654,1.11900598,86483.0,86475.0,0.01156403]
[1769377224867,0.29087154,86494.0,86474.0,0.01156416]
[1769377225066,0.29087154,86492.0,86474.0,0.01156416]
[1769377225271,1.11900598,86489.0,86474.0,0.01156416]
[1769377225472,1.11900598,86489.0,86474.0,0.0693848]
[1769377225743,0.29087154,86500.0,86489.0,0.00999999]
[1769377225973,0.30243223,86500.0,86489.0,0.00999999]
[1769377226177,0.29087154,86500.0,86482.0,0.01156309]
[1769377226800,1.11900598,86503.0,86488.0,0.30290291]
[1769377227020,1.11900598,86503.0,86490.0,0.29134062]
[1769377227234,1.11900598,86503.0,86490.0,0.30290265]
[1769377227458,0.04628,86504.0,86490.0,0.30290265]
[1769377227660,0.0464218,86504.0,86490.0,0.30290265]
[1769377227875,1.16542778,86504.0,86490.0,0.29134062]
[1769377228082,1.16542778,86504.0,86490.0,0.30290265]
[1769377228541,1.16542778,86504.0,86490.0,0.29134062]
[1769377228785,1.16542778,86504.0,86492.0,0.01156176]
[1769377228786,0.0001418,86504.0,86492.0,0.01156176]
[1769377229158,0.0001418,86504.0,86480.0,0.43869853]
[1769377229159,0.09214556,86512.0,86504.0,0.0001418]
[1769377229252,1.11900598,86519.0,86505.0,0.01156002]
[1769377229503,1.11900598,86519.0,86504.0,0.0001418]
[1769377229745,1.11900598,86519.0,86504.0,0.01156015]
[1769377229991,1.21115154,86519.0,86505.0,0.01156002]
[1769377230206,1.21115154,86519.0,86504.0,0.01156015]
[1769377230207,1.11900598,86519.0,86504.0,0.01156015]
[1769377230423,1.11900598,86519.0,86503.0,0.01156029]
[1769377230629,1.40987752,86519.0,86502.0,0.01156042]
[1769377230803,1.11900598,86518.0,86504.0,0.01156015]
[1769377231005,1.11900598,86517.0,86503.0,0.01156029]
[1769377231206,1.11900598,86517.0,86505.0,0.01156002]
[1769377231411,1.11900598,86517.0,86503.0,0.01156029]
[1769377231590,1.11900598,86517.0,86502.0,0.01156042]
[1769377231796,0.11475042,86516.0,86504.0,0.01156015]
[1769377232016,0.11475042,86515.0,86504.0,0.01156015]
[1769377232330,0.11475042,86514.0,86504.0,0.01156015]
[1769377232536,0.11475042,86513.0,86502.0,0.01156042]
[1769377232738,0.11475042,86512.0,86502.0,0.01156042]
[1769377232937,0.11475042,86511.0,86500.0,0.64065362]
[1769377233139,1.11900598,86517.0,86500.0,0.64065362]
[1769377233140,0.11475042,86510.0,86500.0,0.349313]
[1769377233314,0.11475042,86509.0,86500.0,0.349313]
[1769377233533,0.11475042,86508.0,86500.0,0.349313]
[1769377233717,0.11475042,86507.0,86500.0,0.349313]
[1769377233897,0.11475042,86506.0,86500.0,0.349313]
[1769377234101,1.10318973,86512.0,86500.0,0.349313]
[1769377234102,1.10318973,86512.0,86500.0,0.36087369]
[1769377234307,0.11478943,86511.0,86500.0,0.349313]
[1769377234510,0.11478943,86510.0,86502.0,0.01156042]
[1769377234773,0.29087154,86518.0,86502.0,0.01156042]
[1769377234774,0.11478943,86509.0,86502.0,0.01156042]
[1769377234897,0.11478943,86508.0,86502.0,0.06936203]
[1769377235107,0.11478943,86507.0,86503.0,0.05780137]
[1769377235354,0.11478943,86506.0,86503.0,0.01156029]
[1769377235509,1.19533529,86517.0,86504.0,0.01156015]
[1769377235704,1.19533529,86517.0,86506.0,0.01155989]
[1769377235705,0.11484134,86516.0,86506.0,0.01155989]
[1769377235942,0.11484134,86515.0,86508.0,0.01155962]
[1769377236155,1.24101112,86524.0,86508.0,0.01155962]
[1769377236156,0.08011224,86514.0,86508.0,0.01155962]
[1769377236402,1.10318973,86521.0,86510.0,0.01155935]
[1769377236777,1.10318973,86521.0,86508.0,0.01155962]
[1769377237009,1.10318973,86521.0,86505.0,0.3187427]
[1769377237208,0.31603507,86521.0,86507.0,0.01155975]
[1769377237383,0.0005716,86524.0,86509.0,0.01155949]
[1769377237384,1.10318973,86519.0,86509.0,0.01155949]
[1769377237585,0.0005716,86524.0,86510.0,0.01155935]
[1769377237796,1.10376133,86524.0,86513.0,0.01155895]
[1769377238057,1.10318973,86523.0,86508.0,0.01155962]
[1769377238262,1.10318973,86522.0,86511.0,0.01155922]
[1769377238501,0.31603507,86522.0,86510.0,0.01155935]
[1769377238681,1.10318973,86521.0,86509.0,0.01155949]
[1769377238822,1.10318973,86520.0,86503.0,0.01156029]
[1769377239026,0.31603507,86517.0,86500.0,0.41867702]
[1769377239244,1.10318973,86516.0,86503.0,0.01156029]
[1769377239563,1.10318973,86516.0,86502.0,0.01156042]
[1769377239772,1.10318973,86516.0,86501.0,0.01156055]
[1769377239947,1.10318973,86516.0,86502.0,0.01156042]
[1769377240356,1.10318973,86516.0,86501.0,0.01156055]
[1769377240734,1.10318973,86516.0,86502.0,0.01156042]
[1769377241345,1.10318973,86516.0,86500.0,0.36087369]
[1769377241549,1.10318973,86516.0,86500.0,0.349313]
[1769377241971,1.10318973,86516.0,86500.0,0.36087369]
[1769377242675,1.10318973,86516.0,86500.0,0.349313]
[1769377242941,1.10318973,86516.0,86500.0,0.36087369]
[1769377243124,1.10318973,86516.0,86501.0,0.01156055]
[1769377243477,0.31603507,86515.0,86500.0,0.349313]
[1769377243691,1.10318973,86512.0,86503.0,0.01156029]
[1769377244068,1.10318973,86512.0,86501.0,0.01156055]
[1769377244294,1.10318973,86512.0,86504.0,0.01156015]
[1769377244521,1.10318973,86512.0,86505.0,0.01156002]
[1769377244738,1.10318973,86512.0,86504.0,0.01156015]
[1769377244739,0.31660667,86524.0,86513.0,0.01155895]
[1769377244945,1.10318973,86523.0,86512.0,0.02155908]
[1769377245172,0.31603507,86523.0,86512.0,0.02155908]
[1769377245384,1.10318973,86522.0,86512.0,0.00999999]
[1769377245589,1.10318973,86521.0,86512.0,0.00999999]
[1769377245864,0.0005716,86524.0,86512.0,0.00999999]
[1769377246002,0.0005716,86524.0,86513.0,0.01155895]
[1769377246252,0.0005716,86524.0,86514.0,0.01155882]
[1769377246457,0.0005716,86524.0,86515.0,0.01155868]
[1769377246656,1.10376133,86524.0,86514.0,0.01155882]
[1769377246853,1.10376133,86524.0,86515.0,0.01155868]
[1769377247525,1.10376133,86524.0,86512.0,0.06935437]
[1769377247526,1.10376133,86524.0,86512.0,0.01155909]
[1769377247741,1.10376133,86524.0,86511.0,0.01155922]
[1769377247959,1.10376133,86524.0,86510.0,0.01155935]
[1769377248395,0.11513051,86523.0,86510.0,0.01155935]
[1769377248599,1.10376133,86524.0,86510.0,0.01155935]
[1769377248600,0.11513051,86522.0,86512.0,0.01155909]
[1769377248799,0.11513051,86521.0,86513.0,0.01155895]
[1769377249005,0.11513051,86520.0,86513.0,0.01155895]
[1769377249301,0.11513051,86519.0,86510.0,0.01155935]
[1769377249507,1.10376133,86524.0,86511.0,0.01155922]
[1769377249684,1.09786946,86524.0,86510.0,0.01155935]
[1769377249842,1.09786946,86524.0,86504.0,0.01156015]
[1769377250046,1.10318973,86521.0,86504.0,0.01156015]
[1769377250464,0.31603507,86521.0,86504.0,0.01156015]
[1769377250683,1.10318973,86520.0,86503.0,0.01156029]
[1769377251086,1.10318973,86520.0,86502.0,0.07391365]
[1769377251710,1.10318973,86520.0,86503.0,0.01156029]
[1769377251911,1.10318973,86520.0,86504.0,0.01156015]
[1769377252311,1.10318973,86520.0,86503.0,0.01156029]
[1769377252488,1.10318973,86520.0,86502.0,0.07391365]
[1769377252686,1.10318973,86520.0,86503.0,0.01156029]
[1769377252886,1.10318973,86520.0,86504.0,0.31874283]
[1769377253105,1.10318973,86520.0,86505.0,0.01156002]
[1769377253328,1.10318973,86520.0,86506.0,0.01155989]
[1769377253506,1.10318973,86520.0,86507.0,0.01155975]
[1769377254844,1.10318973,86520.0,86508.0,0.01155962]
[1769377255061,1.10318973,86520.0,86507.0,0.01155975]
[1769377255210,1.10318973,86520.0,86508.0,0.01155962]
[1769377255414,1.10318973,86520.0,86507.0,0.01155975]
[1769377255789,0.17180403,86528.0,86516.0,0.01155855]
[1769377255990,0.17180403,86528.0,86517.0,0.01155842]
[1769377256419,1.28301439,86528.0,86517.0,0.01155842]
[1769377256645,1.28301439,86528.0,86511.0,1.33980562]
[1769377256646,0.31603507,86540.0,86528.0,0.02155694]
[1769377256857,0.31603507,86540.0,86530.0,0.01155668]
[1769377256858,0.00014177,86540.0,86530.0,0.01155668]
[1769377257085,0.00014177,86540.0,86528.0,0.00999999]
[1769377257086,0.00014177,86540.0,86535.0,0.01155601]
[1769377257292,0.00014177,86540.0,86533.0,0.01155628]
[1769377257702,0.00014177,86540.0,86531.0,0.06933877]
[1769377257703,0.00014177,86540.0,86531.0,0.01155655]
[1769377258055,0.00014177,86540.0,86529.0,0.01155681]
[1769377258272,0.00014177,86540.0,86531.0,0.01155655]
[1769377258482,0.00014177,86540.0,86530.0,0.31873936]
[1769377258690,0.00014177,86540.0,86531.0,0.01155655]
[1769377259469,0.00014177,86540.0,86532.0,0.01155641]
[1769377259682,0.00014177,86540.0,86534.0,0.01155615]
[1769377259895,0.00014177,86540.0,86535.0,0.01155601]
[1769377260115,0.00014177,86540.0,86532.0,0.01155641]
[1769377260321,0.00014177,86540.0,86530.0,0.36496589]
[1769377260545,0.00014177,86540.0,86532.0,0.01155641]
[1769377260962,0.00014177,86540.0,86525.0,0.23114675]
[1769377260963,0.00014177,86540.0,86453.0,0.14717198]
[1769377261174,0.00014177,86540.0,86519.0,0.01155815]
[1769377261175,1.10318973,86535.0,86519.0,0.01155815]
[1769377261383,0.01169712,86540.0,86519.0,0.01155815]
[1769377261384,0.31603507,86533.0,86519.0,0.01155815]
[1769377261587,1.10318973,86532.0,86482.0,0.020736]
[1769377261786,0.00014177,86540.0,86482.0,0.020736]
[1769377261787,1.10318973,86530.0,86512.0,0.17752]
[1769377261993,0.31603507,86524.0,86507.0,0.01155975]
[1769377262195,1.10318973,86521.0,86510.0,0.01155935]
[1769377262396,1.10318973,86520.0,86510.0,0.01155935]
[1769377262612,1.10318973,86520.0,86506.0,0.0622318]
[1769377262613,0.84499911,86511.0,86491.0,0.08568214]
[1769377262821,0.84499911,86509.0,86494.0,0.01156149]
[1769377263023,0.32164334,86506.0,86496.0,0.01156122]
[1769377263227,0.84499911,86505.0,86496.0,0.01156122]
[1769377263427,0.84499911,86505.0,86493.0,0.01156162]
[1769377263626,0.84499911,86504.0,86494.0,0.01156149]
[1769377263844,0.84499911,86504.0,86496.0,0.01156122]
[1769377264052,0.84499911,86504.0,86495.0,0.01156136]
[1769377264265,0.84499911,86504.0,86498.0,0.01156096]
[1769377264456,0.32164334,86504.0,86498.0,0.01156096]
[1769377264974,0.32164334,86504.0,86495.0,0.01156136]
[1769377265182,0.32164334,86502.0,86490.0,0.01156203]
[1769377265385,0.84499911,86500.0,86491.0,0.01156189]
[1769377265600,0.84513566,86500.0,86492.0,0.01156176]
[1769377265981,0.84513566,86500.0,86490.0,0.18908203]
[1769377266392,0.84513566,86500.0,86492.0,0.01156176]
[1769377266590,0.84513566,86500.0,86491.0,0.01156189]
[1769377267590,0.84513566,86500.0,86490.0,0.18908203]
[1769377267805,0.84513566,86500.0,86491.0,0.01156189]
[1769377268016,0.84513566,86500.0,86493.0,0.01156162]
[1769377268218,0.84513566,86500.0,86495.0,0.01156136]
[1769377268427,0.00013655,86500.0,86495.0,0.01156136]
[1769377268651,0.84499911,86499.0,86496.0,0.01156122]
[1769377268882,0.00013655,86500.0,86497.0,0.01156109]
[1769377269098,0.00013655,86500.0,86495.0,0.01156136]
[1769377269330,0.00013655,86500.0,86496.0,0.01156122]
[1769377269948,0.00013655,86500.0,86497.0,0.06936656]
[1769377270161,0.00013655,86500.0,86497.0,0.01156109]
[1769377270789,0.32164334,86507.0,86497.0,0.01156109]
[1769377271001,0.01155868,86515.0,86495.0,0.069368]
[1769377271002,0.32164334,86505.0,86495.0,0.01156136]
[1769377271224,0.64004331,86504.0,86495.0,0.01156136]
[1769377272091,0.64004331,86504.0,86490.0,0.17752]
[1769377272092,0.05780258,86502.0,86481.0,0.04624]
[1769377272307,0.32164334,86495.0,86483.0,0.01156296]
[1769377272512,0.32164334,86495.0,86484.0,0.01156283]
[1769377272733,0.32164334,86495.0,86486.0,0.01156256]
[1769377272939,0.32164334,86493.0,86481.0,0.00013655]
[1769377273225,0.32164334,86490.0,86481.0,0.00013655]
[1769377273447,0.01156055,86501.0,86481.0,0.00013655]
[1769377273448,0.32164334,86488.0,86481.0,0.00013655]
[1769377273657,1.40703226,86487.0,86481.0,0.00013655]
[1769377274510,0.06936419,86500.0,86481.0,0.00013655]
[1769377274716,0.32164334,86498.0,86481.0,0.00013655]
[1769377274924,0.32164334,86494.0,86481.0,0.00013655]
[1769377275133,0.30708979,86492.0,86481.0,0.00013655]
[1769377275370,1.08538892,86489.0,86481.0,0.00013655]
[1769377275785,1.08538892,86488.0,86481.0,0.00013655]
[1769377276955,1.08525374,86486.0,86472.0,0.01156443]
[1769377277132,0.30708979,86483.0,86472.0,0.00047235]
[1769377277336,1.08525374,86482.0,86472.0,0.00047235]
[1769377277538,1.08525374,86482.0,86472.0,0.01203678]
[1769377277956,1.08525374,86482.0,86474.0,0.01156416]
[1769377278194,1.08525374,86482.0,86476.0,0.0115639]
[1769377278615,1.08525374,86482.0,86475.0,0.01156403]
[1769377279222,1.08525374,86482.0,86472.0,0.01203678]
[1769377279847,1.08525374,86482.0,86473.0,0.0115643]
[1769377280382,1.08525374,86482.0,86474.0,0.01156416]
[1769377280711,1.08525374,86482.0,86475.0,0.01156403]
[1769377280945,1.08525374,86482.0,86474.0,0.01156416]
[1769377281097,1.08525374,86482.0,86473.0,0.0115643]
[1769377281433,0.06936904,86494.0,86472.0,0.06985881]
[1769377281434,0.00601091,86528.0,86487.0,1.09997217]
[1769377281638,0.00601091,86528.0,86498.0,0.01156096]
[1769377281639,0.01155842,86517.0,86498.0,0.01156096]
[1769377281844,0.05778959,86521.0,86494.0,0.3433812]
[1769377281845,0.69207239,86514.0,86503.0,0.01156029]
[1769377282260,0.01155762,86523.0,86504.0,0.01156015]
[1769377282461,0.69207239,86521.0,86504.0,0.01156015]
[1769377282665,0.69207239,86521.0,86503.0,0.01156029]
[1769377282666,0.00802063,86520.0,86503.0,0.01156029]
[1769377282882,0.70023479,86520.0,86504.0,0.01156015]
[1769377283085,0.69221416,86520.0,86504.0,0.01156015]
[1769377283260,0.00802063,86519.0,86503.0,0.01156029]
[1769377283737,0.70009302,86519.0,86504.0,0.01156015]
[1769377283938,0.69207239,86519.0,86505.0,0.01156002]
[1769377284118,0.69207239,86519.0,86507.0,0.01155975]
[1769377284323,0.00014177,86520.0,86511.0,0.01155922]
[1769377284560,0.30723156,86520.0,86504.0,0.18912015]
[1769377284772,0.69207239,86514.0,86493.0,0.01156162]
[1769377284975,0.01155855,86516.0,86493.0,0.01156162]
[1769377284976,0.30708979,86511.0,86496.0,0.01156122]
[1769377285179,0.30708979,86511.0,86490.0,0.33181971]
[1769377285180,0.69207239,86508.0,86486.0,1.08840974]
[1769377285397,0.00802063,86510.0,86484.0,0.01156283]
[1769377285398,0.01156002,86505.0,86484.0,0.01156283]
[1769377285603,0.30708979,86501.0,86485.0,0.01156269]
[1769377285832,0.99916218,86500.0,86487.0,0.01156243]
[1769377286240,0.99916218,86500.0,86488.0,0.01156229]
[1769377286440,0.7600165,86500.0,86487.0,0.01156243]
[1769377286643,0.7600165,86500.0,86491.0,0.01156189]
[1769377286846,0.7600165,86500.0,86492.0,0.01156176]
[1769377287021,0.69207239,86500.0,86495.0,0.01156136]
[1769377287429,0.30708979,86505.0,86495.0,0.01156136]
[1769377287607,0.06935008,86518.0,86495.0,0.01156136]
[1769377287608,0.69207239,86518.0,86502.0,0.01156042]
[1769377287813,0.70009302,86517.0,86501.0,0.01156055]
[1769377288180,0.70009302,86517.0,86502.0,0.01156042]
[1769377288181,0.30708979,86517.0,86502.0,0.01156042]
[1769377288413,0.69207239,86516.0,86501.0,0.01156055]
[1769377288593,0.70009302,86515.0,86503.0,0.01156029]
[1769377288794,0.70009302,86514.0,86503.0,0.01156029]
[1769377289008,0.69207239,86514.0,86502.0,0.01156042]
[1769377289217,0.01155909,86512.0,86500.0,0.33181971]
[1769377289419,0.00014177,86520.0,86467.0,0.1482]
[1769377289420,0.69207239,86510.0,86495.0,0.01156136]
[1769377289659,0.06935303,86514.0,86494.0,0.01156149]
[1769377289868,0.30708979,86510.0,86491.0,0.01156189]
[1769377290078,0.69207239,86509.0,86493.0,0.01156162]
[1769377290464,0.69207239,86509.0,86495.0,0.01156136]
[1769377291012,0.69207239,86509.0,86493.0,0.01156162]
[1769377291218,0.69207239,86508.0,86493.0,0.01046214]
[1769377291631,0.69207239,86508.0,86494.0,0.01156149]
[1769377291818,0.69207239,86508.0,86496.0,0.01156122]
[1769377292126,0.69207239,86508.0,86497.0,0.01156109]
[1769377293079,0.69207239,86508.0,86495.0,0.01156136]
[1769377293251,0.69207239,86508.0,86496.0,0.01156122]
[1769377293525,0.69207239,86508.0,86499.0,0.01156082]
[1769377293758,0.69207239,86508.0,86500.0,0.01156069]
[1769377293993,0.69207239,86508.0,86499.0,0.01156082]
[1769377294481,0.69207239,86508.0,86501.0,0.01156055]
[1769377294859,0.69207239,86514.0,86504.0,0.01156015]
[1769377295093,0.00802063,86513.0,86504.0,0.01156015]
[1769377295300,0.00802063,86513.0,86500.0,0.06936379]
[1769377295581,0.00802063,86513.0,86502.0,0.01156042]
[1769377296369,0.70009302,86513.0,86502.0,0.01156042]
[1769377296575,0.69207239,86513.0,86502.0,0.01156042]
[1769377296940,0.69207239,86513.0,86499.0,0.01156082]
[1769377297137,0.69207239,86513.0,86500.0,0.01156069]
[1769377297347,0.69207239,86513.0,86501.0,0.01156055]
[1769377297549,0.69207239,86513.0,86496.0,1.10418012]
[1769377297550,0.00014177,86520.0,86506.0,0.01155989]
[1769377297754,0.69207239,86519.0,86506.0,0.01155989]
[1769377297966,0.70009302,86518.0,86506.0,0.01155989]
[1769377298182,0.69207239,86516.0,86497.0,0.01156109]
[1769377298379,0.69207239,86513.0,86496.0,0.33122315]
[1769377299226,0.70363134,86513.0,86496.0,0.33122315]
[1769377299430,0.01155909,86512.0,86496.0,0.33122315]
[1769377299632,0.69207239,86512.0,86496.0,0.33122315]
[1769377299832,0.69207239,86512.0,86496.0,0.34278437]
[1769377300035,0.69207239,86512.0,86497.0,0.01156109]
[1769377300283,0.69207239,86512.0,86496.0,0.34278437]
[1769377301006,0.69207239,86512.0,86497.0,0.01156109]
[1769377301151,0.69207239,86512.0,86497.0,0.34278424]
[1769377301852,0.69207239,86512.0,86498.0,0.01156096]
[1769377302187,0.69207239,86512.0,86497.0,0.34278424]
[1769377302393,0.69207239,86512.0,86497.0,0.33122315]
[1769377302629,0.69207239,86512.0,86497.0,0.34278424]
[1769377303445,0.69207239,86512.0,86498.0,0.01156096]
[1769377303653,0.69207239,86512.0,86497.0,0.40058961]
[1769377303865,0.69207239,86512.0,86498.0,0.01156096]
[1769377304145,0.69207239,86512.0,86498.0,0.34278411]
[1769377304341,0.32452147,86521.0,86507.0,0.01155975]
[1769377304540,0.32452147,86521.0,86506.0,0.01155989]
[1769377304541,0.70023479,86520.0,86506.0,0.01155989]
[1769377304773,0.69221416,86520.0,86507.0,0.01155975]
[1769377304943,0.00802063,86519.0,86509.0,0.34278264]
[1769377305143,0.0081624,86520.0,86509.0,0.01155949]
[1769377305369,0.0081624,86520.0,86510.0,0.33122315]
[1769377305626,0.00014177,86520.0,86513.0,0.01155895]
[1769377306213,0.00014177,86520.0,86512.0,0.01155909]
[1769377306371,0.00014177,86520.0,86513.0,0.01155895]
[1769377306779,0.00014177,86520.0,86511.0,0.01155922]
[1769377306999,0.00014177,86520.0,86512.0,0.01155909]
[1769377307340,0.00014177,86520.0,86514.0,0.34278197]
[1769377307466,0.00802063,86527.0,86517.0,0.33122315]
[1769377307660,0.05426063,86528.0,86517.0,0.34278157]
[1769377307947,0.04624,86528.0,86517.0,0.33122315]
[1769377308141,0.05426063,86528.0,86517.0,0.33122315]
[1769377308259,0.00802063,86532.0,86517.0,0.34278157]
[1769377308470,1.12989721,86532.0,86519.0,0.01155815]
[1769377308676,1.12187658,86532.0,86519.0,0.01155815]
[1769377308888,0.00802063,86531.0,86518.0,0.01155828]
[1769377309103,0.00802063,86531.0,86517.0,0.33122315]
[1769377309745,0.00802063,86531.0,86517.0,0.34278157]
[1769377309971,0.00802063,86531.0,86518.0,0.01155828]
[1769377310185,0.00802063,86531.0,86520.0,0.01155802]
[1769377310708,0.00802063,86532.0,86521.0,0.01155788]
[1769377311059,0.00802063,86532.0,86525.0,0.33122315]
[1769377311318,1.12187658,86534.0,86525.0,0.00014177]
[1769377311528,0.00802063,86533.0,86525.0,0.00014177]
[1769377311873,0.92117179,86534.0,86525.0,0.00014177]
[1769377315141,0.00601091,86538.0,86525.0,0.00014177]
[1769377315512,0.00601091,86538.0,86527.0,0.01155708]
[1769377315712,0.00601091,86538.0,86534.0,1.16196053]
[1769377315922,0.0004,86544.0,86536.0,1.43540327]
[1769377316130,0.0004,86544.0,86538.0,0.01155561]
[1769377316334,0.000554,86552.0,86541.0,1.10418012]
[1769377316484,0.000554,86552.0,86543.0,0.33122315]
[1769377316688,0.000554,86552.0,86537.0,0.06933418]
[1769377316689,0.01155575,86537.0,86515.0,0.34278183]
[1769377316894,1.12425408,86537.0,86521.0,0.01155788]
[1769377317091,1.12425408,86537.0,86519.0,0.3427813]
[1769377317295,1.12425408,86537.0,86519.0,0.33122315]
[1769377317296,1.13580983,86537.0,86519.0,0.33122315]
[1769377317565,1.12425408,86537.0,86519.0,0.33122315]
[1769377317728,1.13580983,86537.0,86519.0,0.3427813]
[1769377318285,1.13580983,86537.0,86519.0,0.33122315]
[1769377318516,0.01155601,86535.0,86519.0,0.33122315]
[1769377318735,1.19358873,86537.0,86519.0,0.33122315]
[1769377318736,0.01155588,86536.0,86519.0,0.33122315]
[1769377318925,1.12425408,86537.0,86519.0,0.34262511]
[1769377319544,1.12444898,86537.0,86520.0,0.01155802]
[1769377319910,1.12444898,86537.0,86519.0,0.34262511]
[1769377320113,1.13600473,86537.0,86519.0,0.34262511]
[1769377320343,0.01155588,86536.0,86519.0,0.33106696]
[1769377320542,1.13600473,86537.0,86519.0,0.34262511]
[1769377320753,1.13600473,86537.0,86519.0,0.33106696]
[1769377320954,1.12444898,86537.0,86519.0,0.34262511]
[1769377321407,1.13600473,86537.0,86519.0,0.33106696]
[1769377321578,1.12444898,86537.0,86519.0,0.34262511]
[1769377321882,0.00033667,86537.0,86522.0,0.01155775]
[1769377322081,0.00033667,86537.0,86524.0,0.01155748]
[1769377322732,0.00033667,86537.0,86526.0,0.01155721]
[1769377322946,0.00033667,86537.0,86528.0,0.33122315]
[1769377323151,0.00033667,86537.0,86531.0,0.01155655]
[1769377323366,0.00033667,86537.0,86530.0,0.01155668]
[1769377324000,0.00033667,86537.0,86528.0,0.3427801]
[1769377324224,0.00033667,86537.0,86528.0,0.33122315]
[1769377326000,0.00033667,86537.0,86523.0,1.15907305]
[1769377326207,0.00033667,86537.0,86523.0,1.47349152]
[1769377326437,0.00033667,86537.0,86523.0,1.48504914]
[1769377326636,0.00033667,86537.0,86524.0,0.01155748]
[1769377327011,0.00033667,86537.0,86524.0,0.31441847]
[1769377328785,0.00033667,86537.0,86499.0,0.34682287]
[1769377328786,0.33340561,86525.0,86496.0,0.06502211]
[1769377328991,1.13781966,86516.0,86497.0,0.31441847]
[1769377329202,1.13781966,86516.0,86498.0,0.32597943]
[1769377329402,1.14937821,86516.0,86498.0,0.31441847]
[1769377329603,1.13781966,86516.0,86498.0,0.32597943]
[1769377330033,1.13781966,86515.0,86499.0,0.01156082]
[1769377330291,0.33340561,86516.0,86503.0,0.01156029]
[1769377330495,0.0001949,86519.0,86505.0,0.01156002]
[1769377330703,0.0001949,86519.0,86504.0,0.01156015]
[1769377331114,0.0001949,86519.0,86505.0,0.01156002]
[1769377331415,0.0001949,86519.0,86506.0,0.31441847]
[1769377332212,0.0001949,86519.0,86507.0,0.01155975]
[1769377332522,0.0001949,86519.0,86506.0,0.31441847]
[1769377333295,0.0001949,86519.0,86506.0,0.32597836]
[1769377333500,0.0001949,86519.0,86506.0,0.31441847]
[1769377333701,0.0001949,86519.0,86508.0,0.01155962]
[1769377334155,0.0001949,86519.0,86509.0,0.01155949]
[1769377334379,0.0001949,86519.0,86508.0,0.01155962]
[1769377334610,0.0001949,86519.0,86509.0,0.01155949]
[1769377334820,0.0001949,86519.0,86513.0,0.01155895]
[1769377335049,0.0001949,86519.0,86513.0,0.31441847]
[1769377335263,0.0001949,86519.0,86513.0,0.32597742]
[1769377335780,0.0001949,86519.0,86515.0,0.29933177]
[1769377337573,0.0001949,86519.0,86511.0,0.01155922]
[1769377337721,0.0001949,86519.0,86512.0,0.01155909]
[1769377338045,0.0001949,86519.0,86513.0,0.01155895]
[1769377338257,0.0001949,86519.0,86514.0,0.31089059]
[1769377338406,0.0001949,86519.0,86515.0,0.01155868]
[1769377338610,1.06926066,86529.0,86515.0,0.01155868]
[1769377338611,0.33340561,86532.0,86520.0,0.01155802]
[1769377338835,0.33340561,86532.0,86518.0,0.29933177]
[1769377339044,0.33340561,86532.0,86519.0,0.01155815]
[1769377339045,1.06926066,86532.0,86519.0,0.01155815]
[1769377339213,0.17748,86536.0,86522.0,0.01155775]
[1769377340219,1.24674066,86536.0,86522.0,0.01155775]
[1769377340643,1.24674066,86536.0,86523.0,0.01155762]
[1769377341257,1.24674066,86536.0,86519.0,0.05778958]
[1769377341258,1.24674066,86536.0,86508.0,0.04624]
[1769377341459,0.00014177,86537.0,86526.0,0.01155721]
[1769377342101,0.00014177,86537.0,86527.0,0.01155708]
[1769377342471,0.00014177,86537.0,86524.0,0.29933177]
[1769377342671,0.00014177,86537.0,86525.0,0.01155735]
[1769377342889,0.00014177,86537.0,86526.0,0.01155721]
[1769377343295,0.00014177,86537.0,86525.0,0.01155735]
[1769377343692,0.00014177,86537.0,86524.0,0.29933177]
[1769377343923,0.00014177,86537.0,86526.0,0.01155721]
[1769377344299,0.00014177,86537.0,86525.0,0.29933177]
[1769377344900,1.06940243,86537.0,86523.0,0.01155762]
[1769377345107,1.06940243,86537.0,86522.0,0.01155775]
[1769377345314,1.06940243,86537.0,86523.0,0.01155762]
[1769377345790,1.06940243,86537.0,86524.0,0.01155748]
[1769377347159,1.06940243,86537.0,86523.0,0.01155762]
[1769377347806,1.06940243,86537.0,86524.0,0.01155748]
[1769377349417,1.06940243,86537.0,86525.0,0.01155735]
[1769377349675,1.06940243,86537.0,86526.0,0.01155721]
[1769377349837,1.06940243,86537.0,86523.0,0.01155762]
[1769377350221,1.06940243,86537.0,86522.0,0.01155775]
[1769377350448,0.0003427,86540.0,86529.0,0.31088858]
[1769377350817,0.00044646,86540.0,86529.0,1.47278768]
[1769377351120,0.00044646,86540.0,86529.0,0.31088858]
[1769377351449,0.00044646,86540.0,86530.0,0.01155668]
[1769377351857,0.00044646,86540.0,86531.0,0.01155655]
[1769377352053,0.00044646,86540.0,86530.0,0.01155668]
[1769377353666,0.00044646,86540.0,86532.0,0.01155641]
[1769377354015,0.00044646,86540.0,86531.0,0.05778251]
[1769377354323,0.00044646,86540.0,86533.0,0.01155628]
[1769377355058,1.36837824,86547.0,86533.0,0.01155628]
[1769377356596,1.36837824,86547.0,86534.0,0.01155615]
[1769377357250,1.36837824,86547.0,86533.0,0.01155628]
[1769377357448,1.36837824,86547.0,86530.0,1.46372086]
[1769377357651,1.36837824,86547.0,86532.0,0.01155641]
[1769377357855,1.36837824,86547.0,86533.0,0.01155628]
[1769377360050,1.05782665,86546.0,86530.0,0.33642772]
[1769377361544,1.05782665,86546.0,86530.0,0.32487104]
[1769377361827,1.05782665,86546.0,86530.0,0.33642772]
[1769377361997,1.05782665,86546.0,86530.0,0.32487104]
[1769377362153,1.05782665,86544.0,86530.0,0.32487104]
[1769377364445,1.06938146,86544.0,86530.0,0.32487104]
[1769377365090,0.01155494,86543.0,86530.0,0.32487104]
[1769377365634,1.06938146,86544.0,86530.0,0.32487104]
[1769377366041,1.05782665,86544.0,86530.0,0.32487104]
[1769377366251,0.31231096,86546.0,86530.0,0.32487104]
[1769377366648,0.31231096,86546.0,86530.0,0.33642772]
[1769377366965,0.31231096,86546.0,86530.0,0.32487104]
[1769377367169,0.31231096,86546.0,86531.0,0.01155655]
[1769377368748,0.31231096,86546.0,86530.0,0.32487104]
[1769377368946,0.31231096,86546.0,86531.0,0.01155655]
[1769377369176,0.31231096,86546.0,86530.0,0.33642772]
[1769377369774,0.31231096,86546.0,86531.0,0.01155655]
[1769377370294,0.31231096,86546.0,86531.0,0.32476728]
[1769377370751,0.31231096,86546.0,86532.0,0.01155641]
[1769377370963,0.31231096,86546.0,86531.0,1.45216418]
[1769377371198,0.34994381,86550.0,86535.0,0.01155601]
[1769377371373,1.05782665,86553.0,86536.0,0.01155588]
[1769377371559,0.34994381,86550.0,86537.0,0.01155575]
[1769377371937,0.34994381,86550.0,86536.0,0.17748]
[1769377372570,0.34994381,86550.0,86536.0,0.50224728]
[1769377373426,0.34994381,86550.0,86537.0,0.01155575]
[1769377373668,0.34990055,86550.0,86537.0,1.1273969]